fUST/lending_fUST_20260326
["ID","MTS","AMOUNT","RATE_DAILY","PERIOD"]
[418906259,1774525839526,-500.88227418,6.813e-05,2]
[418906260,1774525839536,-500.0,6.813e-05,2]
[418906261,1774525839546,-256.9190087,6.813e-05,2]
[418906262,1774525839556,-500.0,6.813e-05,2]
[418906263,1774525839565,-500.0,6.813e-05,2]
[418906264,1774525839575,-197.449041,6.813e-05,2]
[418906265,1774525839584,-197.449041,6.813e-05,2]
[418906266,1774525839593,-197.449041,6.813e-05,2]
[418906267,1774525839603,-197.44904688,6.813e-05,2]
[418906268,1774525839612,-77856.68097833,6.831e-05,2]
[418906269,1774525839632,-1522.28706012,6.831e-05,2]
[418906270,1774525839643,-950.52936951,6.831e-05,2]
[418906315,1774525841139,-6874.28756838,6.831e-05,2]
[418906317,1774525841150,-671.77936835,6.831e-05,2]
[418906320,1774525841161,-3924.9608205,6.831e-05,2]
[418906324,1774525841192,-6423.94677741,6.831e-05,2]
[418906375,1774525843920,-19899.28370734,6.831e-05,2]
[418906376,1774525843930,-300.0,6.849e-05,2]
[418906377,1774525843940,-158.759,6.899e-05,2]
[418906378,1774525843949,-690.0,6.9e-05,2]
[418906379,1774525843959,-690.0,6.9e-05,2]
[418906380,1774525843968,-646.0,6.9e-05,2]
[418906381,1774525843978,-690.0,6.9e-05,2]
[418906382,1774525843988,-646.0,6.9e-05,2]
[418906383,1774525843998,-690.0,6.9e-05,2]
[418906384,1774525844008,-646.0,6.9e-05,2]
[418906385,1774525844017,-690.0,6.9e-05,2]
[418906386,1774525844027,-646.0,6.9e-05,2]
[418906387,1774525844037,-690.0,6.9e-05,2]
[418906388,1774525844046,-646.0,6.9e-05,2]
[418906389,1774525844056,-690.0,6.9e-05,2]
[418906390,1774525844065,-646.0,6.9e-05,2]
[418906391,1774525844075,-690.0,6.9e-05,2]
[418906392,1774525844084,-646.0,6.9e-05,2]
[418906393,1774525844094,-690.0,6.9e-05,2]
[418906394,1774525844104,-646.0,6.9e-05,2]
[418906395,1774525844113,-690.0,6.9e-05,2]
[418906396,1774525844123,-646.0,6.9e-05,2]
[418906397,1774525844132,-690.0,6.9e-05,2]
[418906398,1774525844142,-646.0,6.9e-05,2]
[418906399,1774525844151,-690.0,6.9e-05,2]
[418906400,1774525844160,-646.0,6.9e-05,2]
[418906401,1774525844170,-690.0,6.9e-05,2]
[418906402,1774525844180,-646.0,6.9e-05,2]
[418906403,1774525844190,-646.0,6.9e-05,2]
[418906405,1774525844199,-690.0,6.9e-05,2]
[418906412,1774525844266,-646.0,6.9e-05,2]
[418906413,1774525844276,-690.0,6.9e-05,2]
[418906414,1774525844286,-646.0,6.9e-05,2]
[418906415,1774525844295,-690.0,6.9e-05,2]
[418906416,1774525844304,-311.95729306,6.9e-05,2]
[418906417,1774525844316,-334.04270694,6.9e-05,2]
[418906418,1774525844325,-690.0,6.9e-05,2]
[418906419,1774525844335,-339.0,6.9e-05,2]
[418906420,1774525844344,-690.0,6.9e-05,2]
[418906421,1774525844353,-646.0,6.9e-05,2]
[418906422,1774525844362,-690.0,6.9e-05,2]
[418906423,1774525844372,-646.0,6.9e-05,2]
[418906424,1774525844382,-690.0,6.9e-05,2]
[418906425,1774525844391,-646.0,6.9e-05,2]
[418906426,1774525844400,-690.0,6.9e-05,2]
[418906427,1774525844410,-646.0,6.9e-05,2]
[418906428,1774525844419,-646.0,6.9e-05,2]
[418906429,1774525844428,-690.0,6.9e-05,2]
[418906430,1774525844438,-481.70461899,6.9e-05,2]
[418906431,1774525844447,-690.0,6.9e-05,2]
[418906432,1774525844456,-703.12046871,6.9e-05,2]
[418906433,1774525844465,-500.0,6.9e-05,2]
[418906434,1774525844474,-172.0,6.9e-05,2]
[418906435,1774525844483,-504.89325641,6.93e-05,7]
[418906436,1774525844493,-473.53723687,6.935e-05,7]
[418906437,1774525844502,-1064.68207075,6.935e-05,7]
[418906438,1774525844511,-292.47048174,6.973e-05,7]
[418906439,1774525844520,-577.0,7e-05,2]
[418906440,1774525844530,-740.1250135,7.021e-05,7]
[418906441,1774525844539,-375.11713087,7.056e-05,2]
[418906442,1774525844548,-503.4637611,7.121e-05,2]
[418906443,1774525844558,-1000.0,7.121e-05,2]
[418906444,1774525844567,-502.57896594,7.121e-05,2]
[418906445,1774525844576,-1000.0,7.121e-05,2]
[418906446,1774525844586,-2945.804244,7.173e-05,2]
[418906447,1774525844595,-215.0,7.189e-05,2]
[418906448,1774525844604,-254.27064312,7.199e-05,2]
[418906449,1774525844614,-210.32977435,7.2e-05,2]
[418906450,1774525844624,-189.87194709,7.2e-05,2]
[418906451,1774525844633,-272.03301076,7.2e-05,2]
[418906452,1774525844642,-341.76950476,7.2e-05,2]
[418906453,1774525844652,-194.32449822,7.2e-05,2]
[418906454,1774525844661,-240.37688497,7.2e-05,2]
[418906455,1774525844670,-338.77693502,7.2e-05,2]
[418906456,1774525844679,-361.17645282,7.2e-05,2]
[418906457,1774525844689,-489.65941936,7.2e-05,2]
[418906458,1774525844698,-1000.0,7.201e-05,2]
[418906459,1774525844707,-271.64874105,7.295e-05,7]
[418906460,1774525844716,-308.409259,7.361e-05,2]
[418906461,1774525844726,-1000.0,7.361e-05,2]
[418906462,1774525844736,-607.59023068,7.448e-05,2]
[418906463,1774525844745,-2945.804244,7.463e-05,2]
[418906464,1774525844755,-376.1046707,7.513e-05,2]
[418906465,1774525844764,-454.7405096,7.513e-05,2]
[418906466,1774525844774,-324.6780936,7.527e-05,2]
[418906467,1774525844783,-375.21329388,7.594e-05,2]
[418906468,1774525844793,-387.17364003,7.607e-05,2]
[418906469,1774525844802,-506.36458722,7.668e-05,2]
[418906470,1774525844811,-1500.0,7.668e-05,2]
[418906471,1774525844821,-176.19316576,7.747e-05,2]
[418906472,1774525844830,-1501.55993991,7.748e-05,2]
[418906473,1774525844839,-2945.804244,7.753e-05,2]
[418906474,1774525844848,-188.97263819,7.79e-05,2]
[418906475,1774525844858,-488.71069589,7.79e-05,2]
[418906476,1774525844868,-537.6845,7.79e-05,2]
[418906477,1774525844878,-1957.856,7.79e-05,2]
[418906478,1774525844887,-537.6845,7.79e-05,2]
[418906479,1774525844897,-2150.738,7.79e-05,2]
[418906480,1774525844906,-500.0,7.838e-05,2]
[418906481,1774525844916,-557.5788265,7.845e-05,2]
[418906482,1774525844926,-2030.296672,7.845e-05,2]
[418906483,1774525844935,-578.20924308,7.9e-05,2]
[418906484,1774525844945,-2105.41764886,7.9e-05,2]
[418906485,1774525844954,-166.0,7.9e-05,2]
[418906486,1774525844963,-166.0,7.9e-05,2]
[418906487,1774525844972,-156.03520092,7.9e-05,2]
[418906488,1774525844982,-230.66882126,7.9e-05,2]
[418906489,1774525844992,-339.0,7.9e-05,2]
[418906490,1774525845001,-690.0,7.9e-05,2]
[418906491,1774525845011,-339.0,7.9e-05,2]
[418906492,1774525845020,-533.82997688,7.9e-05,2]
[418906493,1774525845030,-172.07517013,7.9e-05,2]
[418906494,1774525845039,-197.11241609,7.9e-05,2]
[418906495,1774525845049,-1500.0,7.908e-05,2]
[418906496,1774525845058,-599.60298507,7.955e-05,2]
[418906497,1774525845068,-2183.31810187,7.955e-05,2]
[418906498,1774525845078,-412.77308894,7.965e-05,2]
[418906499,1774525845088,-870.50563442,8.008e-05,2]
[418906500,1774525845098,-621.78829552,8.01e-05,2]
[418906501,1774525845108,-2264.10087164,8.01e-05,2]
[418906502,1774525845118,-2945.804244,8.042e-05,2]
[418906503,1774525845127,-644.79446246,8.065e-05,2]
[418906504,1774525845137,-2347.87260389,8.065e-05,2]
[418906505,1774525845147,-668.65185757,8.12e-05,2]
[418906506,1774525845156,-1309.5038991,8.12e-05,2]
[418906507,1774525845226,-1125.23999114,8.12e-05,2]
[418906508,1774525845235,-438.59099503,8.175e-05,2]
[418906512,1774525846976,-254.80098127,8.175e-05,2]
[418906513,1774525846985,-2524.82941417,8.175e-05,2]
[418906514,1774525846995,-166.0,8.2e-05,2]
[418906515,1774525847004,-166.0,8.2e-05,2]
[418906516,1774525847014,-231.50923352,8.2e-05,2]
[418906517,1774525847023,-2128.98068335,8.216e-05,2]
[418906518,1774525847032,-601.92195469,8.219e-05,2]
[418906519,1774525847041,-719.04747942,8.23e-05,2]
[418906520,1774525847051,-2618.2481025,8.23e-05,2]
[418906521,1774525847060,-500.0,8.23e-05,2]
[418906522,1774525847069,-948.4103757,8.251e-05,2]
[418906523,1774525847078,-745.65223616,8.285e-05,2]
[418906524,1774525847087,-736.61688457,8.285e-05,2]
[418906525,1774525847096,-2945.804244,8.332e-05,2]
[418906526,1774525847106,-557.5788265,8.338e-05,2]
[418906527,1774525847115,-2230.315306,8.338e-05,2]
[418906528,1774525847124,-773.2413689,8.34e-05,2]
[418906529,1774525847134,-454.9897696,8.349e-05,2]
[418906530,1774525847144,-605.0850626,8.349e-05,2]
[418906531,1774525847155,-195.9346341,8.349e-05,2]
[418906532,1774525847165,-222.08514082,8.366e-05,2]
[418906533,1774525847175,-604.35385373,8.375e-05,2]
[418906534,1774525847186,-801.85129955,8.395e-05,2]
[418906535,1774525847195,-831.51979763,8.45e-05,2]
[418906536,1774525847206,-186.51948221,8.456e-05,2]
[418906537,1774525847215,-300.0,8.465e-05,2]
[418906538,1774525847224,-300.0,8.465e-05,2]
[418906539,1774525847234,-300.0,8.465e-05,2]
[418906540,1774525847244,-300.0,8.465e-05,2]
[418906541,1774525847254,-300.0,8.465e-05,2]
[418906542,1774525847263,-300.0,8.465e-05,2]
[418906543,1774525847273,-300.0,8.465e-05,2]
[418906544,1774525847282,-300.0,8.465e-05,2]
[418906545,1774525847291,-300.0,8.465e-05,2]
[418906546,1774525847300,-300.0,8.465e-05,2]
[418906547,1774525847310,-300.0,8.465e-05,2]
[418906548,1774525847321,-300.0,8.465e-05,2]
[418906549,1774525847331,-300.0,8.465e-05,2]
[418906550,1774525847342,-300.0,8.465e-05,2]
[418906551,1774525847352,-300.0,8.465e-05,2]
[418906552,1774525847361,-600.0,8.465e-05,2]
[418906553,1774525847371,-16498.33477386,8.48e-05,2]
[418906554,1774525847380,-862.28603014,8.505e-05,2]
[418906555,1774525847389,-894.19061326,8.56e-05,2]
[418906556,1774525847399,-927.27566595,8.615e-05,2]
[418906557,1774525847410,-500.0,8.642e-05,2]
[418906558,1774525847422,-961.58486559,8.67e-05,2]
[418906559,1774525847431,-997.16350561,8.725e-05,2]
[418906560,1774525847440,-1401.0,8.729e-05,2]
[418906561,1774525847449,-642.0,8.729e-05,2]
[418906562,1774525847458,-644.31299352,8.759e-05,2]
[418906563,1774525847468,-1358.80488874,8.816e-05,2]
[418906564,1774525847477,-578.20924308,8.886e-05,2]
[418906565,1774525847486,-2312.83697232,8.886e-05,2]
[418906566,1774525847495,-346.6610245,9.195e-05,2]
[418906567,1774525847505,-720.0,9.311e-05,2]
[418906568,1774525847514,-151.701,9.405e-05,2]
[418906569,1774525847523,-599.60298507,9.434e-05,2]
[418906570,1774525847532,-2398.4119403,9.434e-05,2]
[418906571,1774525847541,-621.78829552,9.982e-05,2]
[418906572,1774525847550,-2487.15318209,9.982e-05,2]
[418906573,1774525847560,-188.31563551,0.0001,2]
[418906574,1774525847570,-156.17937153,0.0001,2]
[418906575,1774525847582,-864.0,0.00010243,2]
[418906576,1774525847592,-598.10356957,0.0001053,2]
[418906577,1774525847601,-2579.17784983,0.0001053,2]
[418906578,1774525847611,-324.7756632,0.00010777,2]
[418906579,1774525847621,-15380.3736,0.00010959,2]
[418906580,1774525847675,-151.0,0.00010959,2]
[418906581,1774525847684,-151.268153,0.00010959,2]
[418906582,1774525847693,-761.46559267,0.00010959,2]
[418906583,1774525847703,-761.46559267,0.00010959,2]
[418906584,1774525847714,-761.46559267,0.00010959,2]
[418906585,1774525847725,-761.46559267,0.00010959,2]
[418906586,1774525847735,-761.46559267,0.00010959,2]
[418906587,1774525847745,-761.46559267,0.00010959,2]
[418906588,1774525847755,-761.46559267,0.00010959,2]
[418906589,1774525847763,-761.46559267,0.00010959,2]
[418906590,1774525847773,-761.46559267,0.00010959,2]
[418906591,1774525847782,-761.46559267,0.00010959,2]
[418906592,1774525847791,-761.46559267,0.00010959,2]
[418906593,1774525847800,-761.46559267,0.00010959,2]
[418906594,1774525847809,-761.46559267,0.00010959,2]
[418906595,1774525847818,-761.46559267,0.00010959,2]
[418906596,1774525847828,-761.46559267,0.00010959,2]
[418906597,1774525847837,-761.46559267,0.00010959,2]
[418906598,1774525847847,-761.46559267,0.00010959,2]
[418906599,1774525847856,-151.0,0.00011,2]
[418906600,1774525847866,-151.0,0.00011,2]
[418906601,1774525847876,-151.0,0.00011,2]
[418906602,1774525847885,-151.0,0.00011,2]
[418906603,1774525847896,-151.0,0.00011,2]
[418906604,1774525847906,-151.0,0.00011,2]
[418906605,1774525847916,-2674.60743027,0.00011078,2]
[418906606,1774525847927,-1000.0,0.00011267,2]
[418906607,1774525847937,-156.17937153,0.00011573,7]
[418906608,1774525847947,-363.4907181,0.00011599,2]
[418906609,1774525847956,-2773.56790519,0.00011626,2]
[418906610,1774525847966,-188.31563551,0.00011626,7]
[418906611,1774525847975,-1401.0,0.00011729,2]
[418906612,1774525847985,-642.0,0.00011729,2]
[418906613,1774525847994,-800.0,0.00012009,2]
[418906614,1774525848004,-2876.18991768,0.00012174,2]
[418906615,1774525848013,-8359.72228811,0.00012274,2]
[418906616,1774525848023,-5000.0,0.00012274,2]
[418906617,1774525848032,-5000.0,0.00012274,2]
[418906618,1774525848042,-5000.0,0.00012274,2]
[418906619,1774525848051,-5000.0,0.00012274,2]
[418906620,1774525848060,-5000.0,0.00012274,2]
[418906621,1774525848069,-196.7356836,0.00012328,2]
[418906622,1774525848079,-196.1430804,0.00012328,2]
[418906623,1774525848088,-500.0,0.00012366,2]
[418906624,1774525848098,-111.93310294,0.00012394,2]
[418906625,1774525848111,-888.06689706,0.00012394,2]
[418906626,1774525848122,-244.0,0.00012394,2]
[418906627,1774525848131,-188.0,0.00012514,2]
[418906628,1774525848142,-166.39572816,0.00012514,2]
[418906695,1774527034384,-150.449,9.29e-05,2]
[418906696,1774527034394,-154.371,9.29e-05,2]
[418906697,1774527034404,-572.04326639,9.29e-05,2]
[418906722,1774527038774,-1622.95673361,9.29e-05,2]
[418906724,1774527038784,-642.0,9.29e-05,2]
[418906726,1774527038793,-584.84926669,9.29e-05,2]
[418906730,1774527038827,-816.15073331,9.29e-05,2]
[418906732,1774527038836,-439.0,9.29e-05,2]
[418906734,1774527038845,-551.0,9.29e-05,2]
[418906736,1774527038855,-184.0,9.29e-05,2]
[418906738,1774527038864,-550.0,9.29e-05,2]
[418906740,1774527038874,-300.0,9.475e-05,2]
[418906742,1774527038883,-300.0,9.475e-05,2]
[418906744,1774527038893,-300.0,9.475e-05,2]
[418906746,1774527038903,-300.0,9.475e-05,2]
[418906748,1774527038914,-300.0,9.475e-05,2]
[418906750,1774527038923,-300.0,9.475e-05,2]
[418906753,1774527038933,-300.0,9.475e-05,2]
[418906754,1774527038942,-300.0,9.475e-05,2]
[418906756,1774527038951,-300.0,9.475e-05,2]
[418906759,1774527038961,-300.0,9.475e-05,2]
[418906760,1774527038971,-300.0,9.475e-05,2]
[418906762,1774527038980,-300.0,9.475e-05,2]
[418906764,1774527038990,-300.0,9.475e-05,2]
[418906766,1774527038999,-300.0,9.475e-05,2]
[418906768,1774527039009,-300.0,9.475e-05,2]
[418906770,1774527039018,-6947.6471934,0.00010737,2]
[418906772,1774527039028,-13382.4759313,0.00010959,2]
[418906774,1774527039038,-151.0,0.00011,2]
[418906776,1774527039047,-151.0,0.00011,2]
[418906778,1774527039057,-151.0,0.000111,2]
[418906780,1774527039066,-151.0,0.000111,2]
[418906782,1774527039076,-151.0,0.000112,2]
[418906785,1774527039085,-151.0,0.000112,2]
[418906786,1774527039095,-151.0,0.000113,2]
[418906788,1774527039104,-151.0,0.000113,2]
[418906790,1774527039113,-6874.28756838,0.00011363,2]
[418906792,1774527039123,-151.0,0.000114,2]
[418906795,1774527039133,-151.0,0.000114,2]
[418906796,1774527039143,-500.0,0.00011476,2]
[418906798,1774527039153,-94301.59922034,0.00011478,2]
[418906801,1774527039168,-26012.00593113,0.00011478,2]
[418906803,1774527039179,-1520.08874999,0.00011478,2]
[418906805,1774527039190,-5056.49508421,0.00011478,2]
[418907339,1774527044438,-695.7,0.00011478,2]
[418907830,1774527049567,-20719.35310804,0.00011478,2]
[418907872,1774527049989,-849.36237519,0.00011478,2]
[418908488,1774528232015,-300.0,9.596e-05,2]
[418908491,1774528232024,-554.0,9.596e-05,2]
[418908493,1774528232034,-642.0,9.597e-05,2]
[418908495,1774528232043,-1401.0,9.597e-05,2]
[418908497,1774528232051,-2195.0,9.597e-05,2]
[418908499,1774528232060,-735.0,9.597e-05,2]
[418908501,1774528232069,-184.0,9.597e-05,2]
[418908503,1774528232078,-439.0,9.597e-05,2]
[418908505,1774528232087,-300.0,9.788e-05,2]
[418908507,1774528232095,-300.0,9.788e-05,2]
[418908509,1774528232104,-300.0,9.788e-05,2]
[418908511,1774528232113,-300.0,9.788e-05,2]
[418908513,1774528232123,-300.0,9.788e-05,2]
[418908515,1774528232132,-300.0,9.788e-05,2]
[418908517,1774528232141,-300.0,9.788e-05,2]
[418908519,1774528232150,-300.0,9.788e-05,2]
[418908521,1774528232159,-300.0,9.788e-05,2]
[418908523,1774528232168,-300.0,9.788e-05,2]
[418908525,1774528232177,-300.0,9.788e-05,2]
[418908527,1774528232186,-300.0,9.788e-05,2]
[418908529,1774528232195,-300.0,9.788e-05,2]
[418908531,1774528232205,-300.0,9.788e-05,2]
[418908533,1774528232215,-300.0,9.788e-05,2]
[418908535,1774528232224,-480.34586774,9.983e-05,2]
[418908537,1774528232236,-119.65413226,9.983e-05,2]
[418908539,1774528232245,-359.92352969,0.00010884,2]
[418908582,1774528238066,-140.07647031,0.00010884,2]
[418908584,1774528238076,-500.0,0.00010884,2]
[418908586,1774528238085,-500.0,0.00010884,2]
[418908588,1774528238094,-542.82365754,0.00010884,2]
[418908590,1774528238103,-500.0,0.00010884,2]
[418908592,1774528238112,-500.0,0.00010884,2]
[418908594,1774528238120,-634.21068004,0.00010884,2]
[418908595,1774528238130,-720.0,0.00010981,2]
[418908597,1774528238139,-1759.91417927,0.00011061,2]
[418908600,1774528238150,-113012.61833255,0.00011061,2]
[418908604,1774528238182,-7621.28880206,0.00011061,2]
[418908838,1774528240669,-7909.01872154,0.00011061,2]
[418908840,1774528240680,-2584.04324684,0.00011061,2]
[418908842,1774528240691,-523.75236559,0.00011061,2]
[418908844,1774528240702,-16657.38831245,0.00011061,2]
[418908846,1774528240712,-1258.43671265,0.00011061,2]
[418909111,1774528243502,-813.5,0.00011061,2]
[418909113,1774528243514,-999.9375291,0.00011061,2]
[418909115,1774528243526,-16325.12467085,0.00011061,2]
[418909120,1774528243569,-285.0,0.00011061,2]
[418909321,1774528246052,-544.52153273,0.0001106,2]
[418909323,1774528246061,-636.14238088,0.0001106,2]
[418909325,1774528246070,-544.52153273,0.0001106,2]
[418909327,1774528246080,-544.52153273,0.0001106,2]
[418909329,1774528246089,-544.52153273,0.0001106,2]
[418909331,1774528246099,-544.52153273,0.0001106,2]
[418909333,1774528246108,-544.52153273,0.0001106,2]
[418909335,1774528246117,-544.52153273,0.0001106,2]
[418909337,1774528246126,-544.52153273,0.0001106,2]
[418909339,1774528246135,-544.52153273,0.0001106,2]
[418909341,1774528246144,-544.52153273,0.0001106,2]
[418909343,1774528246153,-544.52153273,0.0001106,2]
[418909345,1774528246162,-544.52153273,0.0001106,2]
[418909347,1774528246171,-544.52153273,0.0001106,2]
[418909349,1774528246180,-111.97269433,0.0001106,2]
[418909371,1774528246383,-432.5488384,0.0001106,2]
[418909373,1774528246392,-544.52153273,0.0001106,2]
[418909375,1774528246401,-544.52153273,0.0001106,2]
[418909377,1774528246410,-544.52153273,0.0001106,2]
[418909379,1774528246419,-544.52153273,0.0001106,2]
[418909381,1774528246429,-544.52153273,0.0001106,2]
[418909383,1774528246437,-544.52153274,0.0001106,2]
[418909385,1774528246446,-544.52153273,0.0001106,2]
[418909387,1774528246455,-544.52153273,0.0001106,2]
[418909389,1774528246464,-544.52153273,0.0001106,2]
[418909391,1774528246473,-5304.53910346,0.00011061,2]
[418909393,1774528246485,-11884.971555,0.00011061,2]
[418909595,1774528288234,2000.0,9.905e-05,2]
[418909596,1774528288792,960.51672853,9.805e-05,2]
[418909600,1774528940527,-300.0,8.498e-05,28]
[418909603,1774529138098,-300.0,8.468e-05,30]
[418909608,1774529432057,-300.0,8.461e-05,25]
[418909609,1774529432066,-642.0,9.902e-05,2]
[418909610,1774529432075,-1772.13835595,9.902e-05,2]
[418909677,1774529438428,-422.86164405,9.902e-05,2]
[418909679,1774529438438,-1401.0,9.902e-05,2]
[418909681,1774529438447,-184.0,9.902e-05,2]
[418909683,1774529438457,-559.0,9.902e-05,2]
[418909685,1774529438467,-300.0,0.00010099,2]
[418909687,1774529438476,-300.0,0.00010099,2]
[418909689,1774529438485,-300.0,0.00010099,2]
[418909691,1774529438495,-300.0,0.00010099,2]
[418909693,1774529438505,-300.0,0.00010099,2]
[418909695,1774529438515,-300.0,0.00010099,2]
[418909697,1774529438524,-300.0,0.00010099,2]
[418909699,1774529438533,-300.0,0.00010099,2]
[418909701,1774529438542,-300.0,0.00010099,2]
[418909703,1774529438551,-300.0,0.00010099,2]
[418909705,1774529438561,-300.0,0.00010099,2]
[418909707,1774529438571,-300.0,0.00010099,2]
[418909709,1774529438580,-300.0,0.00010099,2]
[418909711,1774529438589,-300.0,0.00010099,2]
[418909713,1774529438598,-300.0,0.00010099,2]
[418909715,1774529438607,-474.21009397,0.000103,2]
[418910222,1774529443475,-125.78990603,0.000103,2]
[418910224,1774529443485,-308.5,0.00010652,2]
[418910226,1774529443495,-209.71009397,0.00010681,2]
[418910228,1774529443506,-245.15618353,0.00010681,2]
[418910230,1774529443517,-105.59101973,0.00010681,2]
[418910366,1774529446336,-219.19553917,0.00010681,2]
[418910368,1774529446346,-457.2867974,0.00010681,2]
[418910369,1774529446355,-324.5551156,0.00010681,2]
[418910371,1774529446365,-196.1748999,0.00010681,2]
[418910373,1774529446374,-196.0765529,0.00010681,2]
[418910375,1774529446384,-514.32362847,0.00010757,2]
[418910377,1774529446394,-500.0,0.00010757,2]
[418910379,1774529446404,-500.0,0.00010757,2]
[418910381,1774529446413,-500.0,0.00010757,2]
[418910383,1774529446422,-500.0,0.00010757,2]
[418910385,1774529446432,-500.0,0.00010757,2]
[418910387,1774529446441,-500.0,0.00010757,2]
[418910389,1774529446451,-508.46637778,0.00010757,2]
[418910391,1774529446460,-152.48770567,0.00010757,2]
[418910393,1774529446470,-500.0,0.00010757,2]
[418910395,1774529446479,-500.0,0.00010757,2]
[418910397,1774529446488,-194.87787081,0.00010757,2]
[418910400,1774529446562,-305.12212919,0.00010757,2]
[418910401,1774529446571,-187.09940664,0.00010757,2]
[418910402,1774529446612,-173.95609253,0.00010757,2]
[418910403,1774529446623,-138.94450083,0.00010757,2]
[418910404,1774529446633,-395.99079976,0.00010757,2]
[418910405,1774529446642,-500.0,0.00010757,2]
[418910406,1774529446651,-500.0,0.00010757,2]
[418910407,1774529446661,-500.0,0.00010757,2]
[418910408,1774529446670,-500.0,0.00010757,2]
[418910409,1774529446679,-500.0,0.00010757,2]
[418910410,1774529446741,-500.0,0.00010757,2]
[418910411,1774529446751,-500.0,0.00010757,2]
[418910412,1774529446760,-500.0,0.00010757,2]
[418910413,1774529446770,-500.0,0.00010757,2]
[418910414,1774529446780,-497.98910923,0.00010757,2]
[418910455,1774530634146,-160.0,9.183e-05,3]
[418910456,1774530634157,-160.0,9.309e-05,4]
[418910457,1774530634167,-160.0,9.435e-05,5]
[418910458,1774530634176,-160.0,9.561e-05,6]
[418910459,1774530634187,-160.0,9.687e-05,7]
[418910460,1774530634197,-160.0,9.813e-05,8]
[418910461,1774530634206,-558.0,9.875e-05,2]
[418910462,1774530634216,-190.19479241,9.875e-05,2]
[418910463,1774530634228,-5.98010749,9.875e-05,2]
[418910464,1774530634238,-300.0,9.901e-05,2]
[418910465,1774530634248,-642.0,9.902e-05,2]
[418910466,1774530634258,-375.89382058,9.902e-05,2]
[418910510,1774530638575,-1819.10617942,9.902e-05,2]
[418910512,1774530638585,-184.0,9.902e-05,2]
[418910514,1774530638596,-439.0,9.902e-05,2]
[418910516,1774530638605,-160.0,9.939e-05,9]
[418910518,1774530638615,-160.0,0.00010065,10]
[418910520,1774530638625,-300.0,0.00010099,2]
[418910522,1774530638634,-300.0,0.00010099,2]
[418910524,1774530638644,-300.0,0.00010099,2]
[418910526,1774530638653,-300.0,0.00010099,2]
[418910528,1774530638662,-300.0,0.00010099,2]
[418910530,1774530638672,-300.0,0.00010099,2]
[418910532,1774530638682,-300.0,0.00010099,2]
[418910534,1774530638692,-300.0,0.00010099,2]
[418910536,1774530638701,-300.0,0.00010099,2]
[418910538,1774530638710,-300.0,0.00010099,2]
[418910540,1774530638719,-300.0,0.00010099,2]
[418910542,1774530638728,-300.0,0.00010099,2]
[418910544,1774530638738,-300.0,0.00010099,2]
[418910546,1774530638748,-300.0,0.00010099,2]
[418910548,1774530638758,-300.0,0.00010099,2]
[418910550,1774530638767,-160.0,0.0001019,11]
[418910552,1774530638777,-600.0,0.000103,2]
[418910555,1774530638787,-160.0,0.00010316,12]
[418910557,1774530638796,-152.518,0.00010442,2]
[418910559,1774530638806,-160.0,0.00010442,13]
[418910561,1774530638815,-500.0,0.00010551,2]
[418910563,1774530638824,-500.0,0.00010551,2]
[418910565,1774530638833,-514.32362847,0.00010551,2]
[418910567,1774530638843,-500.0,0.00010551,2]
[418910569,1774530638852,-500.0,0.00010551,2]
[418910571,1774530638861,-500.0,0.00010551,2]
[418910573,1774530638870,-500.0,0.00010551,2]
[418910575,1774530638880,-508.46637778,0.00010551,2]
[418910577,1774530638889,-152.48770567,0.00010551,2]
[418910579,1774530638898,-500.0,0.00010551,2]
[418910581,1774530638908,-500.0,0.00010551,2]
[418910583,1774530638917,-500.0,0.00010551,2]
[418910585,1774530638926,-500.0,0.00010551,2]
[418910587,1774530638936,-500.0,0.00010551,2]
[418910589,1774530638945,-500.0,0.00010551,2]
[418910591,1774530638954,-500.0,0.00010551,2]
[418910593,1774530638963,-328.43345547,0.00010551,2]
[418910595,1774530638972,-500.0,0.00010551,2]
[418910597,1774530638981,-500.0,0.00010551,2]